Cogmind - Beta 16.1 @@@ ROGUE MODE // 2026.03.21 @ 18:31:58 Player: APerTAS Result: Destroyed by G-34 Mercenary with Small Laser Performance ------------- Evolutions (1) 500 Regions Visited (3) 600 Robots Destroyed (5) 25 Value Destroyed (170) 170 Prototype IDs (0) 0 Alien Tech Used (0) 0 Bonus (200) 200 TOTAL SCORE: 1495 Bonus ------- Pacifist 200 Cogmind --------- Core Integrity 0/400 Matter 189/300 Energy 100/100 System Corruption 6% Temperature Cool (6) Movement Core (50) Location -9/Materials Parts ------- > --- POWER (1) -------- (None) > --- PROPULSION (4) --- (None) > --- UTILITY (2) ------ (None) > --- WEAPON (2) ------- Maul (fused) > --- INVENTORY (5) ---- (None) Peak State ------------ > --- POWER ------------ (None) > --- PROPULSION ------- (None) > --- UTILITY ---------- (None) > --- WEAPON ----------- Maul > --- INVENTORY -------- (None) [Rating: 2] Favorites ----------- Power None Propulsion None Utility None Weapon Maul Impact Weapon Maul Build | -11 -10 -10 -9 ------- Run | Yrd Mat Min Mat Slots Evolved 2 | . . . 2 Power . | . . . . Propulsion 2 | . . . 2 Utility . | . . . . Weapon . | . . . . Parts Attached 1 | . . . 1 Power . | . . . . Engine . | . . . . Core . | . . . . Reactor . | . . . . Propulsion . | . . . . Treads . | . . . . Leg . | . . . . Wheel . | . . . . Hover . | . . . . Flight . | . . . . Utility . | . . . . Device . | . . . . Storage . | . . . . Processor . | . . . . Hackware . | . . . . Protection . | . . . . Artifact . | . . . . Weapon 1 | . . . 1 Energy Gun . | . . . . Energy Cannon . | . . . . Ballistic Gun . | . . . . Ballistic Cannon . | . . . . Launcher . | . . . . Special Weapon . | . . . . Impact Weapon 1 | . . . 1 Slashing Weapon . | . . . . Piercing Weapon . | . . . . Special Melee Weapon . | . . . . Unidentified Prototypes . | . . . . Parts Lost . | . . . . Power . | . . . . Propulsion . | . . . . Utility . | . . . . Weapon . | . . . . Highest Loss Streak . | . . . . To Critical Strikes . | . . . . Average Backups . | . . . . Power . | . . . . Propulsion . | . . . . Utility . | . . . . Weapon . | . . . . Tool/Special . | . . . . Unused Backups . | . . . . Power . | . . . . Propulsion . | . . . . Utility . | . . . . Weapon . | . . . . Tool/Special . | . . . . Average Slot Usage (%) 3 | . . . 5 Impact Weapon 3 | . . . 5 Peak Build Rating 2 | . . . 2 Average Rating . | . . . 1 On Entrance . | . . . . Avg Prop Armor Cover (%) . | . . . . Naked Turns 154 | . 15 67 72 Heaviest Build 3 | . . . 3 Greatest Support 3 | 3 3 3 3 Greatest Overweight (x) . | . . . . Average Overweight (x) . | . . . . Largest Inventory Capacity 5 | 5 5 5 5 Average Capacity 5 | 5 5 5 5 Most Carried . | . . . . Average Carried . | . . . . Final Capacity 5 | 5 5 5 5 Final Carried . | . . . . Class Distribution -------------------- 100% | Mutant Dominant Class ---------------- Mutant | -10/Materials Mutant | -10/Mines Mutant | -9/Materials Resources | -11 -10 -10 -9 ----------- Run | Yrd Mat Min Mat Matter Collected 72 | 36 . . 36 Remotely . | . . . . Salvage Created 154 | . . . 154 Parts 4 | . . . 4 Haulers Intercepted . | . . . . Recyclers Shooed . | . . . . Parts Field Recycled . | . . . . Retrieved Matter . | . . . . Parts Self-Destructed . | . . . . Prevented . | . . . . Parts Restored . | . . . . Kills | -11 -10 -10 -9 ------- Run | Yrd Mat Min Mat Combat Hostiles Destroyed 5 | . . . 5 Melee 4 | . . . 4 Classes Destroyed 1 | . . . 1 Grunt 5 | . . . 5 Best Kill Streak 3 | . . . 3 Combat Bots Only 3 | . . . 3 Max Kills in Single Turn 1 | . . . 1 Gunslinging . | . . . . Exploded . | . . . . Melee 1 | . . . 1 Uniques/NPCs Destroyed . | . . . . Combat | -11 -10 -10 -9 -------- Run | Yrd Mat Min Mat Hostile Shots Fired 56 | . 10 2 44 Missed 18 | . 6 2 10 Hits 38 | . 4 . 34 Melee 3 | . . . 3 Projectile 35 | . 4 . 31 Critical Strikes 1 | . . . 1 Damage Taken 528 | . 28 . 500 Core 438 | . 28 . 410 Absorbed by Shields . | . . . . Core Remaining (%) 94 | 100 . 88 . Volleys Fired . | . . . . Largest . | . . . . Hottest . | . . . . Shots Fired . | . . . . Gun . | . . . . Cannon . | . . . . Launcher . | . . . . Special . | . . . . Kinetic . | . . . . Thermal . | . . . . Explosive . | . . . . Electromagnetic . | . . . . Robot Hit Streak . | . . . . Robot Miss Streak . | . . . . Penetration Max . | . . . . Secondary Targets . | . . . . Shots Hit Robots 18 | . . . 18 Core Hits 5 | . . . 5 Critical Kills . | . . . . Critical Parts Destroyed 4 | . . . 4 Critical Strikes 4 | . . . 4 Smash 4 | . . . 4 Melee Attacks 25 | . . . 25 Impact 25 | . . . 25 Slashing . | . . . . Piercing . | . . . . Sneak Attacks . | . . . . Combat Hostiles . | . . . . Follow-up Attacks . | . . . . Damage Inflicted 669 | . . . 669 Guns . | . . . . Cannons . | . . . . Explosions . | . . . . Melee 615 | . . . 615 Ramming 54 | . . . 54 Kinetic . | . . . . Thermal . | . . . . Explosive . | . . . . Electromagnetic . | . . . . Impact 615 | . . . 615 Slashing . | . . . . Piercing . | . . . . Highest Corruption 6 | . . . 6 Average Corruption 5 | . . . 5 Corruption Purged . | . . . . Corruption Blocked . | . . . . Effects 3 | . . . 3 Message Errors 1 | . . . 1 Parts Fused 1 | . . . 1 Data Loss (minor) 1 | . . . 1 Overload Shots . | . . . . Overflow Damage 185 | . . . 185 Projectiles . | . . . . Explosions . | . . . . Melee 185 | . . . 185 Knockbacks 2 | . . . 2 Impact 2 | . . . 2 Kinetic . | . . . . Secondary . | . . . . Self-Inflicted Damage 25 | . . . 25 Shots . | . . . . Rammed 11 | . . . 11 Targets Rammed 11 | . . . 11 Kicked . | . . . . Crushed . | . . . . Highest Temperature . | . . . . Average Temperature . | . . . . Received Heat Transfer 168 | . . . 168 Siege Activations . | . . . . Martial Activations . | . . . . Shielding Activations . | . . . . Robots Disrupted . | . . . . Combat Hostiles . | . . . . Robots Corrupted 1 | . . . 1 Combat Hostiles 1 | . . . 1 Parts Fried 3 | . . . 3 Impact Corruptions 6 | . . . 6 Robots Melted . | . . . . Combat Hostiles . | . . . . Parts Melted . | . . . . Heat Transferred . | . . . . Parts Sabotaged . | . . . . Parts Stolen . | . . . . Parts Stripped . | . . . . Power Chain Reactions . | . . . . Alert | -11 -10 -10 -9 ------- Run | Yrd Mat Min Mat Maximum Alert Level . | . . . . Low Security (%) 100 | 100 100 100 100 Level 1 . | . . . . Level 2 . | . . . . Level 3 . | . . . . Level 4 . | . . . . Level 5 . | . . . . High Security . | . . . . Max Security . | . . . . Peak Influence 120 | . . . 120 Initial . | . . . . Average 17 | . . . 28 Influence Increases 150 | . . . 150 Destroy 0b10 Robot/C 100 | . . . 100 Destroy Leader 20 | . . . 20 Lose Combat Pursuer 30 | . . . 30 Influence Decreases 30 | . . . 30 Time Decay 30 | . . . 30 Squads Dispatched 3 | . . . 3 Investigation 3 | . . . 3 Extermination . | . . . . Reinforcement . | . . . . Assault . | . . . . Garrison . | . . . . Intercept . | . . . . Searches Triggered . | . . . . Construction Impeded . | . . . . Haulers Reinforced . | . . . . Active Scanning Responses . | . . . . Cargo Convoy Interrupts . | . . . . Stealth | -11 -10 -10 -9 --------- Run | Yrd Mat Min Mat Distress Signals . | . . . . Communications Jammed . | . . . . Distress Signals . | . . . . Times Spotted 17 | . 6 3 8 Peak Tracking Total 8 | . 6 3 8 Tactical Retreats 1 | . . . 1 Traps | -11 -10 -10 -9 ------- Run | Yrd Mat Min Mat Traps Triggered . | . . . . Indirectly . | . . . . Trap Hack Attempts . | . . . . Triggered . | . . . . Disarmed . | . . . . Reprogrammed . | . . . . Reused . | . . . . Traps Extracted . | . . . . Installed . | . . . . Triggered . | . . . . Machines | -11 -10 -10 -9 ---------- Run | Yrd Mat Min Mat Machines Disabled . | . . . . Max in Single Turn . | . . . . Machines Repaired . | . . . . Machines Dismantled . | . . . . Machines Sabotaged . | . . . . Overloaded Fab Kills . | . . . . Hacking | -11 -10 -10 -9 --------- Run | Yrd Mat Min Mat Machines Accessed 3 | . . . 3 Terminals 2 | . . . 2 Fabricators . | . . . . Repair Stations 1 | . . . 1 Recycling Units . | . . . . Scanalyzers . | . . . . Garrison Access . | . . . . Total Hacks 4 | . . . 4 Successful 3 | . . . 3 Failed 1 | . . . 1 Catastrophic . | . . . . Database Lockouts . | . . . . Manual 4 | . . . 4 Terminals 3 | . . . 3 Fabricators . | . . . . Repair Stations 1 | . . . 1 Recycling Units . | . . . . Scanalyzers . | . . . . Garrison Access . | . . . . Terminal Hacks . | . . . . Fabricator Hacks . | . . . . Repair Station Hacks . | . . . . Recycling Unit Hacks . | . . . . Scanalyzer . | . . . . Garrison Access Hacks . | . . . . Unauthorized Hacks 3 | . . . 3 Terminals 2 | . . . 2 Sabotage 2 | . . . 2 Fabricators . | . . . . Repair Stations 1 | . . . 1 Patch 1 | . . . 1 Recycling Units . | . . . . Scanalyzers . | . . . . Garrison Access . | . . . . Data Cores Recovered . | . . . . Used . | . . . . Hacking Detections 1 | . . . 1 Full Trace Events . | . . . . Feedback Events . | . . . . Feedback Blocked . | . . . . Robot Schematics Acquired . | . . . . Robots Built . | . . . . Authchips . | . . . . Time . | . . . . Total Robot Build Rating . | . . . . Part Schematics Acquired . | . . . . Parts Built . | . . . . Authchips . | . . . . Time . | . . . . Total Part Build Rating . | . . . . Part Studies Acquired . | . . . . Parts Repaired . | . . . . Time . | . . . . Parts Recycled . | . . . . Recycled Matter . | . . . . Retrieved Matter . | . . . . Retrieved Components . | . . . . Parts Scanalyzed . | . . . . Part Schematics Acquired . | . . . . Parts Damaged . | . . . . Bothacking | -11 -10 -10 -9 ------------ Run | Yrd Mat Min Mat Used RIF Installer . | . . . . Robots Hacked . | . . . . Non-combat . | . . . . Combat . | . . . . Robot Hacks Applied . | . . . . Relay Couplers Released . | . . . . Fabnet Peak Effective % . | . . . . Robots Rewired . | . . . . Allies Hacked . | . . . . Hacks Repelled . | . . . . Allies | -11 -10 -10 -9 -------- Run | Yrd Mat Min Mat Total Allies . | . . . . Largest Group . | . . . . Highest-Rated Group . | . . . . Highest-Rated Ally . | . . . . Total Orders . | . . . . Ally Attacks . | . . . . Total Damage . | . . . . Kills . | . . . . Allies Corrupted . | . . . . Allies Melted . | . . . . Intel | -11 -10 -10 -9 ------- Run | Yrd Mat Min Mat Active Infowar (turns) . | . . . . Robot Analysis Total . | . . . . Derelict Logs Recovered 1 | . . 1 . Drone Launches . | . . . . Drone Recoveries . | . . . . Exploration | -11 -10 -10 -9 ------------- Run | Yrd Mat Min Mat Turns Passed 245 | 11 15 67 152 Spaces Moved 313 | 21 30 134 128 Core 313 | 21 30 134 128 Treads . | . . . . Legs . | . . . . Wheels . | . . . . Hover . | . . . . Flight . | . . . . Fastest Speed 50 | 50 50 50 50 Average Speed 50 | 50 50 50 50 Slowest Speed 50 | 50 50 50 50 Overloaded Moves . | . . . . Propulsion Burnouts . | . . . . Robots Hopped . | . . . . Potential Cave-ins . | . . . . Cave-ins Triggered . | . . . . Exploration Rate (%) 23 | 3 14 57 21 Regions Visited 3 Branch Regions 1 Pre-discovered Areas . | . . . . Known Exits Taken . | . . . . Unknown Exits Taken 3 | 1 1 1 . Scrap Searched . | . . . . Spaces Dug . | . . . . Terrain Destroyed . | . . . . Melee . | . . . . Projectile . | . . . . AOE . | . . . . Terrain Rammed . | . . . . Walls Destroyed . | . . . . Machines Disabled . | . . . . Actions | -11 -10 -10 -9 --------- Run | Yrd Mat Min Mat Total 348 | 20 29 133 166 Wait . | . . . . Move 310 | 20 29 133 128 Hop . | . . . . Pick Up . | . . . . Fast Attach 2 | . . . 2 Attach . | . . . . Detach . | . . . . Swap . | . . . . Drop . | . . . . Fire . | . . . . Melee 25 | . . . 25 Ram 11 | . . . 11 Kick . | . . . . Crush . | . . . . Escape Stasis . | . . . . Rewire . | . . . . Trap . | . . . . Miscellaneous . | . . . . Route ------- -11/Scrapyard -10/Materials -10/Mines -9/Materials History --------- Turn | Location | Event 3 | -11/Scrapyard | Discovered new exit (range 15) 12 | -11/Scrapyard | Entered Materials 24 | -10/Materials | Discovered new exit (range 7) 27 | -10/Materials | Entered Mines 57 | -10/Mines | Learned Materials non-interactive machine intel 91 | -10/Mines | Discovered new exit (range 8) 94 | -10/Mines | Entered Materials 94 | -9/Materials | Evolved 2 slots: Propulsion x2 95 | -9/Materials | Loaded intel: 31 non-interactive machine locations 171 | -9/Materials | Core integrity fell below 50% 211 | -9/Materials | Core integrity fell below 20% 246 | -9/Materials | Destroyed by G-34 Mercenary with Small Laser Last Messages --------------- 00217_ G-34 Mercenary suffers critical hit (Smash). 00217_ Destroyed Aluminum Leg. 00217_ G-34 Mercenary system corrupted by crushing effect. 00217_ Aluminum Leg fried. 00217_ Heat Sink fried. 00217_ G-34 Mercenary destroyed. 00220_ R-06 Scavenger collects Ion Engine. 00220_ Destroyed Heat Sink. 00220_ G-34 Mercenary system corrupted by crushing effect. 00235_ G-34 Mercenary suffers critical hit (Smash). 00235_ Destroyed Ion Engine. 00235_ G-34 Mercenary system corrupted by crushing effect. 00237_ System corrupted: Maul fused. 00237_ G-34 Mercenary IFF system glitched. 00241_ G-34 Mercenary destroyed. 00242_ R-06 Scavenger collects Corrupted Aluminum Leg. 00244_ G-34 Mercenary suffers critical hit (Smash). 00244_ Destroyed Aluminum Leg. 00244_ G-34 Mercenary system corrupted by crushing effect. 00245_ G-34 Mercenary system terminally corrupted. Map ----- +----------------------------------------------------+ | | | | | | | | | ????????????????????????????????????????????????? | | ????????????????????????????????????????????????? | | ????????????????????????????????????????????????? | | ????????????????????????????????????????????????? | | ????????????????????????????????????????????????? | | ??????????????????????????????????????????"""???? | | ??????????????????????????????????????????"""???? | | ??????????????????????????????????????????"""???? | | ???????????????????????????"????????????????????? | | ??????????????????????????????????????????"""???? | | ????????????????????????????????"""?"""???"""???? | | ???????????????###########??????"""?"""???"""???? | | ???????????????# = #??????"""?"""?????????? | | ???????????????# #????????????????"""???? | | ???????????????# #????????????????"""???? | | ???????????????# #????????????????"""???? | | ???????????????#########+#??????????????????????? | | ???????????????????????# #??????????????????????? | | ???????????????????????# #??????????????????????? | | ???????????????????????# #??????????????????????? | | ???????????????????????#%#??????????????????????? | | ???????????????????????#@#??????????????????????? | | ???????????????????????#g#??????????????????????? | | ???????????????????????#r#??????????????????????? | | ???????????????????????#r#????????""""??????????? | | ???????????????????????# #????????""""??????????? | | ???????????????????????# #????????""""??????????? | | ???????????????????????# #??????????????????????? | | ??????????????########## #?????#????????????????? | | ?????????????? ## #???? #????????????????? | | ??????????????? ## #??## ###??????????????? | | ?????????????? """ ## ### ###????????????? | | ??????????????? """"" # ?????????? | | ??????????????? """"" + T ?????????? | | ????????????????""""" # ?????????? | | ???????????????? """ # ## /###????????????? | | ???????????????? # #?##+###??????????????? | | ??????????????? # #?? ????????????????? | | ?????????????########## #?? ??????????????? | | ?????????????# ?# #?""" """?????????????? | | ?????????????# ?# #?""" """ ????????????? | | ?????????????# # # """ """ #??????"""??? | | ?????????????# # # #??????"""??? | | ?????????????# + + #??????"""??? | | ?????????????# # # #???????????? | | ?????######### ### ###########???????????? | +----------------------------------------------------+ Best States ------------- Heat Dissipation 28 Energy Generation 5 Energy Capacity 100 Matter Stores 189 Matter Capacity 300 Sight Range 16 Terrain Scan Density 10 Evasion (%) 50 Item Schematics ----------------- None Robot Schematics ------------------ None Fabricated ------------ Nothing Repaired ---------- Nothing Studied --------- None Alien Tech Used ----------------- None Achievements -------------- None Challenges ------------ None Game ------ Seed ArmorElectrostormClaw Manual? 0 Play Time 00:03:22 Cumulative 31.4 hours Start 2026.03.21 @ 18:29:54 End 2026.03.21 @ 18:31:58 Sessions 1 Manual Loads 0 Difficulty Rogue Special Mode None Game No. 151 Rogue 151 Adventurer 0 Explorer 0 Win Type - Total 0 Types 0/0/0/0/0/0/0/0/0/0 Lore% 35 Gallery% 29 Achievement% 36 Wizard Run 0 Options --------- Layout 0 ASCII 0 Keyboard 0 Movement Arrows Keybinds 0 Fullscreen 2 Font 18/Terminus Map View 76x50 Zoom Use 0% Tactical HUD 1 Map Filters NONE Filters NONE Steam 1 RUN: 75326f77-0ee7-4c4a-96ea-dc277b8242bc